fUSD/lending_fUSD_20250530
["ID","MTS","AMOUNT","RATE_DAILY","PERIOD"]
[363160399,1748604661005,-420.0,0.00022739,2]
[363160400,1748604661015,-167.67214446,0.00022739,2]
[363160401,1748604661024,-484.01,0.00022739,2]
[363160402,1748604661034,-476.62,0.00022739,2]
[363160403,1748604661043,-611.09,0.00022739,2]
[363160404,1748604661053,-466.39,0.00022739,2]
[363160405,1748604661063,-420.0,0.00022739,2]
[363160406,1748604661072,-420.0,0.00022739,2]
[363160407,1748604661082,-479.89,0.00022739,2]
[363160408,1748604661091,-777.7,0.00022739,2]
[363160409,1748604661101,-544.4,0.00022739,2]
[363160410,1748604661110,-420.0,0.00022739,2]
[363160411,1748604661121,-411.96160554,0.00022739,2]
[363160412,1748604661131,-420.0,0.00022739,2]
[363160413,1748604661141,-1992.36,0.00022739,2]
[363160414,1748604661151,-449.12,0.00022739,2]
[363160415,1748604661161,-1690.08,0.00022739,2]
[363160416,1748604661171,-935.34,0.00022739,2]
[363160417,1748604661181,-474.41,0.00022739,2]
[363160418,1748604661191,-420.0,0.00022739,2]
[363160419,1748604661202,-420.0,0.00022739,2]
[363160420,1748604661212,-973.78,0.00022739,2]
[363160421,1748604661221,-420.0,0.00022739,2]
[363160422,1748604661231,-574.23,0.00022739,2]
[363160423,1748604661241,-1023.52,0.00022739,2]
[363160424,1748604661251,-577.88,0.00022739,2]
[363160425,1748604661261,-531.71,0.00022739,2]
[363160426,1748604661271,-1661.66,0.00022739,2]
[363160427,1748604661281,-420.0,0.00022739,2]
[363160428,1748604661291,-420.0,0.00022739,2]
[363160429,1748604661300,-420.0,0.00022739,2]
[363160430,1748604661311,-772.75,0.00022739,2]
[363160431,1748604661322,-420.0,0.00022739,2]
[363160432,1748604661332,-605.59,0.00022739,2]
[363160433,1748604661342,-420.0,0.00022739,2]
[363160434,1748604661352,-420.0,0.00022739,2]
[363160435,1748604661362,-588.38,0.00022739,2]
[363160436,1748604661373,-578.91,0.00022739,2]
[363160437,1748604661383,-420.0,0.00022739,2]
[363160438,1748604661393,-606.64,0.00022739,2]
[363160439,1748604661402,-443.15,0.00022739,2]
[363160440,1748604661412,-420.0,0.00022739,2]
[363160441,1748604661422,-1125.77,0.00022739,2]
[363160442,1748604661431,-420.0,0.00022739,2]
[363160443,1748604661441,-420.0,0.00022739,2]
[363160444,1748604661450,-354.71380424,0.00022739,2]
[363160445,1748604661460,-938.03,0.00022739,2]
[363160446,1748604661470,-931.36,0.00022739,2]
[363160447,1748604661480,-420.0,0.00022739,2]
[363160448,1748604661490,-420.0,0.00022739,2]
[363160449,1748604661499,-1301.2,0.00022739,2]
[363160450,1748604661509,-420.0,0.00022739,2]
[363160451,1748604661519,-420.0,0.00022739,2]
[363160452,1748604661529,-775.29,0.00022739,2]
[363160453,1748604661539,-420.0,0.00022739,2]
[363160454,1748604661549,-420.0,0.00022739,2]
[363160455,1748604661558,-420.0,0.00022739,2]
[363160456,1748604661568,-575.37,0.00022739,2]
[363160457,1748604661578,-420.0,0.00022739,2]
[363160458,1748604661588,-483.2,0.00022739,2]
[363160459,1748604661597,-534.46,0.00022739,2]
[363160460,1748604661608,-420.0,0.00022739,2]
[363160461,1748604661619,-795.5,0.00022739,2]
[363160462,1748604661629,-487.54,0.00022739,2]
[363160463,1748604661639,-722.47,0.00022739,2]
[363160464,1748604661648,-420.0,0.00022739,2]
[363160465,1748604661658,-423.44,0.00022739,2]
[363160466,1748604661668,-420.0,0.00022739,2]
[363160467,1748604661677,-674.84,0.00022739,2]
[363160468,1748604661687,-1084.93,0.00022739,2]
[363160469,1748604661697,-956.78,0.00022739,2]
[363160470,1748604661706,-1747.0,0.00022739,2]
[363160471,1748604661716,-523.54,0.00022739,2]
[363160472,1748604661727,-499.91,0.00022739,2]
[363160473,1748604661737,-903.59,0.00022739,2]
[363160474,1748604661747,-865.58,0.00022739,2]
[363160475,1748604661757,-900.74,0.00022739,2]
[363160476,1748604661979,-420.0,0.00022739,2]
[363160477,1748604661989,-212.252071,0.00022739,7]
[363160478,1748604661998,-1372.63,0.00022739,2]
[363160479,1748604662008,-588.22,0.00022739,2]
[363160480,1748604662018,-515.15300302,0.00022739,2]
[363160481,1748604662028,-1375.2,0.00022739,2]
[363160482,1748604662039,-429.11,0.00022739,2]
[363160483,1748604662048,-420.0,0.00022739,2]
[363160484,1748604662058,-770.98,0.00022739,2]
[363160485,1748604662068,-420.0,0.00022739,2]
[363160486,1748604662078,-768.17,0.00022739,2]
[363160487,1748604662087,-508.43406595,0.00022739,2]
[363160488,1748604662096,-517.47,0.00022739,2]
[363160489,1748604662106,-420.0,0.00022739,2]
[363160490,1748604662116,-623.0,0.00022739,2]
[363160491,1748604662127,-793.05,0.00022739,2]
[363160492,1748604662136,-1241.06,0.00022739,2]
[363160493,1748604662145,-765.2,0.00022739,2]
[363160494,1748604662154,-420.0,0.00022739,2]
[363160495,1748604662163,-421.91,0.00022739,2]
[363160496,1748604662172,-421.93,0.00022739,2]
[363160497,1748604662182,-485.75,0.00022739,2]
[363160498,1748604662191,-420.0,0.00022739,2]
[363160499,1748604662201,-420.0,0.00022739,2]
[363160500,1748604662210,-283.56205,0.00022739,7]
[363160501,1748604662220,-491.63,0.00022739,2]
[363160502,1748604662230,-502.61,0.00022739,2]
[363160503,1748604662240,-283.56205,0.00022739,7]
[363160504,1748604662250,-430.15,0.00022739,2]
[363160505,1748604662260,-9469.1,0.00022739,2]
[363160506,1748604662270,-10073.27,0.00022739,2]
[363160507,1748604662281,-742.8,0.00022739,2]
[363160508,1748604662291,-420.0,0.00022739,2]
[363160509,1748604662301,-2689.83,0.00022739,2]
[363160510,1748604662311,-1981.59,0.00022739,2]
[363160511,1748604662321,-607.85,0.00022739,2]
[363160512,1748604662331,-564.47,0.00022739,2]
[363160513,1748604662340,-1369.33,0.00022739,2]
[363160514,1748604662351,-576.41,0.00022739,2]
[363160515,1748604662360,-12307.47,0.00022739,2]
[363160516,1748604662373,-1369.38,0.00022739,2]
[363160517,1748604662382,-863.99,0.00022739,2]
[363160518,1748604662391,-1245.87,0.00022739,2]
[363160519,1748604662400,-5194.13,0.00022739,2]
[363160520,1748604662410,-420.0,0.00022739,2]
[363160521,1748604662420,-880.77,0.00022739,2]
[363160522,1748604662430,-563.44,0.00022739,2]
[363160523,1748604662439,-2466.96,0.00022739,2]
[363160524,1748604662449,-631.65,0.00022739,2]
[363160525,1748604662459,-420.0,0.00022739,2]
[363160526,1748604662469,-420.0,0.00022739,2]
[363160527,1748604662479,-659.94,0.00022739,2]
[363160528,1748604662489,-816.72,0.00022739,2]
[363160529,1748604662499,-420.0,0.00022739,2]
[363160530,1748604662509,-2995.72,0.00022739,2]
[363160531,1748604662518,-598.75,0.00022739,2]
[363160532,1748604662529,-2447.94,0.00022739,2]
[363160533,1748604662539,-2947.99,0.00022739,2]
[363160534,1748604662548,-420.0,0.00022739,2]
[363160535,1748604662557,-151.0,0.00022739,7]
[363160536,1748604662567,-1153.83,0.00022739,2]
[363160537,1748604662577,-3076.84,0.00022739,2]
[363160538,1748604662587,-769.26,0.00022739,2]
[363160539,1748604662598,-924.16,0.00022739,2]
[363160540,1748604662607,-644.07,0.00022739,2]
[363160541,1748604662619,-420.0,0.00022739,2]
[363160542,1748604662629,-1310.77,0.00022739,2]
[363160543,1748604662639,-1040.66,0.00022739,2]
[363160544,1748604662649,-520.85,0.00022739,2]
[363160545,1748604662659,-1315.08,0.00022739,2]
[363160546,1748604662668,-420.0,0.00022739,2]
[363160547,1748604662678,-420.0,0.00022739,2]
[363160548,1748604662687,-420.0,0.00022739,2]
[363160549,1748604662696,-1506.01,0.00022739,2]
[363160550,1748604662706,-1515.01,0.00022739,2]
[363160551,1748604662716,-420.0,0.00022739,2]
[363160552,1748604662725,-1337.36,0.00022739,2]
[363160553,1748604662735,-3730.71,0.00022739,2]
[363160554,1748604662744,-425.25,0.00022739,2]
[363160555,1748604662754,-1314.08,0.00022739,2]
[363160556,1748604662763,-759.43,0.00022739,2]
[363160557,1748604662771,-909.46,0.00022739,2]
[363160558,1748604662780,-420.0,0.00022739,2]
[363160559,1748604662790,-673.25,0.00022739,2]
[363160560,1748604662799,-2157.82,0.00022739,2]
[363160561,1748604662809,-612.32,0.00022739,2]
[363160562,1748604662818,-1256.48,0.00022739,2]
[363160563,1748604662829,-1075.01,0.00022739,2]
[363160564,1748604662843,-1309.63,0.00022739,2]
[363160565,1748604662856,-1218.05,0.00022739,2]
[363160566,1748604662871,-915.55,0.00022739,2]
[363160567,1748604662887,-2231.36,0.00022739,2]
[363160568,1748604662899,-420.0,0.00022739,2]
[363160569,1748604662908,-420.0,0.00022739,2]
[363160570,1748604662918,-420.0,0.00022739,2]
[363160571,1748604662932,-2569.35,0.00022739,2]
[363160572,1748604662941,-6828.35,0.00022739,2]
[363160573,1748604662956,-1631.2,0.00022739,2]
[363160574,1748604662971,-611.68,0.00022739,2]
[363160575,1748604662978,-3976.57,0.00022739,2]
[363160576,1748604662985,-555.53,0.00022739,2]
[363160577,1748604662993,-3327.44,0.00022739,2]
[363160578,1748604663003,-420.0,0.00022739,2]
[363160579,1748604663014,-1192.67,0.00022739,2]
[363160580,1748604663024,-828.67,0.00022739,2]
[363160581,1748604663035,-3739.43,0.00022739,2]
[363160582,1748604663048,-420.0,0.00022739,2]
[363160583,1748604663059,-772.93,0.00022739,2]
[363160584,1748604663072,-2900.14,0.00022739,2]
[363160585,1748604663083,-3733.9,0.00022739,2]
[363160586,1748604663094,-1294.2,0.00022739,2]
[363160587,1748604663107,-1235.41,0.00022739,2]
[363160588,1748604663119,-5087.08,0.00022739,2]
[363160589,1748604663130,-1678.74,0.00022739,2]
[363160590,1748604663140,-582.4,0.00022739,2]
[363160591,1748604663152,-1439.67,0.00022739,2]
[363160592,1748604663162,-580.13,0.00022739,2]
[363160593,1748604663172,-6434.09,0.00022739,2]
[363160594,1748604663183,-759.66,0.00022739,2]
[363160595,1748604663193,-3623.76,0.00022739,2]
[363160596,1748604663203,-655.72,0.00022739,2]
[363160597,1748604663213,-642.76,0.00022739,2]
[363160598,1748604663223,-428.63574318,0.00022739,2]
[363160599,1748604663233,-481.9,0.00022739,2]
[363160600,1748604663243,-447.8,0.00022739,2]
[363160601,1748604663254,-549.6,0.00022739,2]
[363160602,1748604663264,-3772.06,0.00022739,2]
[363160603,1748604663274,-2238.52,0.00022739,2]
[363160604,1748604663283,-656.16,0.00022739,2]
[363160605,1748604663293,-2601.73,0.00022739,2]
[363160606,1748604663303,-1054.88,0.00022739,2]
[363160607,1748604663313,-568.59,0.00022739,2]
[363160608,1748604663323,-1168.1,0.00022739,2]
[363160609,1748604663333,-1669.51,0.00022739,2]
[363160610,1748604663343,-581.44,0.00022739,2]
[363160611,1748604663353,-999.1,0.00022739,2]
[363160612,1748604663363,-420.0,0.00022739,2]
[363160613,1748604663375,-3565.93,0.00022739,2]
[363160614,1748604663385,-420.0,0.00022739,2]
[363160615,1748604663395,-644.61,0.00022739,2]
[363160616,1748604663405,-1021.83,0.00022739,2]
[363160617,1748604663415,-1573.75,0.00022739,2]
[363160618,1748604663425,-420.0,0.00022739,2]
[363160619,1748604663434,-1017.27,0.00022739,2]
[363160620,1748604663444,-700.99,0.00022739,2]
[363160621,1748604663454,-2494.53,0.00022739,2]
[363160622,1748604663463,-2312.08,0.00022739,2]
[363160623,1748604663473,-680.88,0.00022739,2]
[363160624,1748604663483,-1182.54,0.00022739,2]
[363160625,1748604663492,-906.67,0.00022739,2]
[363160626,1748604663501,-2382.61,0.00022739,2]
[363160627,1748604663511,-420.0,0.00022739,2]
[363160628,1748604663521,-8094.13,0.00022739,2]
[363160629,1748604663531,-516.49,0.00022739,2]
[363160630,1748604663540,-3383.87,0.00022739,2]
[363160631,1748604663550,-927.42,0.00022739,2]
[363160632,1748604663561,-4483.36,0.00022739,2]
[363160633,1748604663571,-515.51,0.00022739,2]
[363160634,1748604663582,-639.62,0.00022739,2]
[363160635,1748604663592,-2136.49,0.00022739,2]
[363160636,1748604663603,-420.0,0.00022739,2]
[363160637,1748604663612,-839.58,0.00022739,2]
[363160638,1748604663623,-979.47,0.00022739,2]
[363160639,1748604663633,-1149.03,0.00022739,2]
[363160640,1748604663643,-608.6,0.00022739,2]
[363160641,1748604663653,-939.09,0.00022739,2]
[363160642,1748604663662,-420.0,0.00022739,2]
[363160643,1748604663672,-1482.61,0.00022739,2]
[363160644,1748604663684,-1000.0,0.00022739,2]
[363160645,1748604663694,-1889.77,0.00022739,2]
[363160646,1748604663703,-420.0,0.00022739,2]
[363160647,1748604663713,-750.99,0.00022739,2]
[363160648,1748604663723,-960.87,0.00022739,2]
[363160649,1748604663733,-514.33,0.00022739,2]
[363160650,1748604663742,-431.76,0.00022739,2]
[363160651,1748604663752,-866.43,0.00022739,2]
[363160652,1748604663762,-1436.8,0.00022739,2]
[363160653,1748604663772,-493.51,0.00022739,2]
[363160654,1748604663781,-10057.47,0.00022739,2]
[363160655,1748604663792,-754.64,0.00022739,2]
[363160656,1748604663801,-420.0,0.00022739,2]
[363160657,1748604663811,-574.11,0.00022739,2]
[363160658,1748604663821,-420.0,0.00022739,2]
[363160659,1748604663830,-2523.48,0.00022739,2]
[363160660,1748604663840,-864.09,0.00022739,2]
[363160661,1748604663849,-420.0,0.00022739,2]
[363160662,1748604663858,-595.39,0.00022739,2]
[363160663,1748604663869,-2343.17,0.00022739,2]
[363160664,1748604663882,-1350.61,0.00022739,2]
[363160665,1748604663892,-1275.82,0.00022739,2]
[363160666,1748604663901,-10528.63,0.00022739,2]
[363160667,1748604663911,-785.99,0.00022739,2]
[363160668,1748604663921,-420.0,0.00022739,2]
[363160669,1748604663931,-746.67,0.00022739,2]
[363160670,1748604663941,-1173.07,0.00022739,2]
[363160671,1748604663952,-1197.98,0.00022739,2]
[363160672,1748604663963,-2200.67,0.00022739,2]
[363160673,1748604663973,-845.16,0.00022739,2]
[363160674,1748604663984,-795.97,0.00022739,2]
[363160675,1748604663994,-1300.55,0.00022739,2]
[363160676,1748604664004,-785.56,0.00022739,2]
[363160677,1748604664014,-6935.34,0.00022739,2]
[363160678,1748604664025,-420.0,0.00022739,2]
[363160679,1748604664035,-420.0,0.00022739,2]
[363160680,1748604664047,-420.0,0.00022739,2]
[363160681,1748604664057,-5936.94,0.00022739,2]
[363160682,1748604664069,-1476.35,0.00022739,2]
[363160683,1748604664079,-420.0,0.00022739,2]
[363160684,1748604664089,-123071.45,0.00022739,2]
[363160685,1748604664100,-4600.82,0.00022739,2]
[363160686,1748604664110,-574.07,0.00022739,2]
[363160687,1748604664123,-420.0,0.00022739,2]
[363160688,1748604664134,-288.039804,0.00022739,7]
[363160689,1748604664145,-1760.95,0.00022739,2]
[363160690,1748604664155,-632.71,0.00022739,2]
[363160691,1748604664164,-420.0,0.00022739,2]
[363160692,1748604664175,-792.56,0.00022739,2]
[363160693,1748604664186,-876.4,0.00022739,2]
[363160694,1748604664196,-891.11,0.00022739,2]
[363160695,1748604664207,-1035.56,0.00022739,2]
[363160696,1748604664218,-3046.1,0.00022739,2]
[363160697,1748604664229,-781.24,0.00022739,2]
[363160698,1748604664239,-868.44,0.00022739,2]
[363160699,1748604664250,-1178.18,0.00022739,2]
[363160700,1748604664260,-31646.38,0.00022739,2]
[363160701,1748604664270,-420.0,0.00022739,2]
[363160702,1748604664281,-420.0,0.00022739,2]
[363160703,1748604664291,-996.67,0.00022739,2]
[363160704,1748604664301,-1089.79,0.00022739,2]
[363160705,1748604664311,-420.0,0.00022739,2]
[363160706,1748604664321,-420.0,0.00022739,2]
[363160707,1748604664331,-875.57,0.00022739,2]
[363160708,1748604664341,-2264.05,0.00022739,2]
[363160709,1748604664351,-420.0,0.00022739,2]
[363160710,1748604664361,-1584.69,0.00022739,2]
[363160711,1748604664372,-384.38186722,0.00022739,2]
[363160712,1748604664458,-951.88,0.00022739,2]
[363160713,1748604664467,-520.84,0.00022739,2]
[363160714,1748604664477,-1161.85,0.00022739,2]
[363160715,1748604664485,-1451.673205,0.00022739,7]
[363160716,1748604664494,-423.91,0.00022739,2]
[363160717,1748604664503,-1822.04,0.00022739,2]
[363160718,1748604664513,-420.0,0.00022739,2]
[363160719,1748604664524,-1451.673205,0.00022739,7]
[363160720,1748604664533,-654.3,0.00022739,2]
[363160721,1748604664543,-761.08,0.00022739,2]
[363160722,1748604664553,-420.0,0.00022739,2]
[363160723,1748604664563,-1824.55,0.00022739,2]
[363160724,1748604664573,-1143.21,0.00022739,2]
[363160725,1748604664582,-1064.51,0.00022739,2]
[363160726,1748604664592,-204.0,0.0002274,2]
[363160727,1748604664602,-500.0,0.00022773,2]
[363160728,1748604664612,-5612.24,0.000228,2]
[363160729,1748604664622,-554.29,0.000228,2]
[363160730,1748604664631,-1415.43,0.000228,2]
[363160731,1748604664641,-1415.43,0.000228,2]
[363160732,1748604664651,-949.9,0.000228,2]
[363160733,1748604664660,-949.9,0.000228,2]
[363160734,1748604664669,-2831.27,0.000228,2]
[363160735,1748604664679,-2831.27,0.000228,2]
[363160736,1748604664688,-739.39,0.000228,2]
[363160737,1748604664698,-739.39,0.000228,2]
[363160738,1748604664707,-375.56,0.000228,2]
[363160739,1748604664717,-375.56,0.000228,2]
[363160740,1748604664726,-151.0,0.000228,7]
[363160741,1748604664736,-2591.86224837,0.00022831,8]
[363160742,1748604664745,-1000.0,0.00022884,2]
[363160743,1748604664754,-2000.0,0.00022885,2]
[363160744,1748604664763,-2000.0,0.00022885,2]
[363160745,1748604664773,-168.72042497,0.00022913,2]
[363160746,1748604664782,-305.60291948,0.00022913,2]
[363160747,1748604664791,-2591.86224837,0.00022969,8]
[363160748,1748604664800,-209.2,0.00023,2]
[363160749,1748604664809,-550.0,0.00023,14]
[363160750,1748604664819,-150.0,0.00023,10]
[363160751,1748604664828,-200.0,0.00023,2]
[363160752,1748604664837,-4000.0,0.00023,4]
[363160753,1748604664847,-300.0,0.00023012,2]
[363160754,1748604664856,-300.0,0.00023012,2]
[363160755,1748604664866,-300.0,0.00023012,2]
[363160756,1748604664879,-1573.44,0.00023012,2]
[363160757,1748604664889,-1391.71,0.00023012,2]
[363160758,1748604664899,-7429.13,0.00023012,2]
[363160759,1748604664908,-2921.34,0.00023012,2]
[363160760,1748604664919,-794.62,0.00023012,2]
[363160761,1748604664928,-3174.36,0.00023012,2]
[363160762,1748604664937,-6568.92,0.00023012,2]
[363160763,1748604664947,-1736.8,0.00023012,2]
[363160764,1748604664956,-1403.38,0.00023012,2]
[363160765,1748604664966,-670.15,0.00023012,2]
[363160766,1748604664975,-9101.03,0.00023012,2]
[363160767,1748604664984,-18152.04,0.00023012,2]
[363160768,1748604664993,-27441.36,0.00023012,2]
[363160769,1748604665002,-751.61,0.00023012,2]
[363160770,1748604665011,-8935.23,0.00023012,2]
[363160771,1748604665021,-2810.26,0.00023012,2]
[363160772,1748604665030,-300.0,0.00023012,2]
[363160773,1748604665041,-1874.07,0.00023012,2]
[363160774,1748604665050,-1242.14,0.00023012,2]
[363160775,1748604665059,-1551.25,0.00023012,2]
[363160776,1748604665070,-672.13,0.00023012,2]
[363160777,1748604665080,-300.0,0.00023012,2]
[363160778,1748604665089,-628.57,0.00023013,2]
[363160779,1748604665099,-420.0,0.00023013,2]
[363160780,1748604665108,-420.0,0.00023013,2]
[363160781,1748604665118,-420.0,0.00023013,2]
[363160782,1748604665128,-420.0,0.00023013,2]
[363160783,1748604665136,-420.0,0.00023013,2]
[363160784,1748604665145,-433.48,0.00023013,2]
[363160785,1748604665153,-420.0,0.00023013,2]
[363160786,1748604665162,-640.5,0.00023013,2]
[363160787,1748604665172,-420.0,0.00023013,2]
[363160788,1748604665181,-420.0,0.00023013,2]
[363160789,1748604665190,-539.07,0.00023013,2]
[363160790,1748604665199,-465.13,0.00023013,2]
[363160791,1748604665207,-420.0,0.00023013,2]
[363160792,1748604665217,-465.38,0.00023013,2]
[363160793,1748604665226,-420.0,0.00023013,2]
[363160794,1748604665236,-420.0,0.00023013,2]
[363160795,1748604665244,-250.0,0.00023013,2]
[363160796,1748604665253,-420.0,0.00023013,2]
[363160797,1748604665262,-420.0,0.00023013,2]
[363160798,1748604665271,-420.0,0.00023013,2]
[363160799,1748604665281,-151.0,0.00023013,7]
[363160800,1748604665290,-420.0,0.00023013,2]
[363160801,1748604665299,-468.76,0.00023013,2]
[363160802,1748604665308,-420.0,0.00023013,2]
[363160803,1748604665316,-420.0,0.00023013,2]
[363160804,1748604665325,-420.0,0.00023013,2]
[363160805,1748604665333,-420.0,0.00023013,2]
[363160806,1748604665341,-420.0,0.00023013,2]
[363160807,1748604665350,-420.0,0.00023013,2]
[363160808,1748604665358,-420.0,0.00023013,2]
[363160809,1748604665367,-420.0,0.00023013,2]
[363160810,1748604665376,-420.0,0.00023013,2]
[363160811,1748604665384,-420.0,0.00023013,2]
[363160812,1748604665393,-452.19,0.00023013,2]
[363160813,1748604665401,-420.0,0.00023013,2]
[363160814,1748604665410,-209.2344508,0.00023013,2]
[363160815,1748604665420,-420.0,0.00023013,2]
[363160816,1748604665429,-420.0,0.00023013,2]
[363160817,1748604665438,-645.55,0.00023013,2]
[363160818,1748604665446,-420.0,0.00023013,2]
[363160819,1748604665454,-420.0,0.00023013,2]
[363160820,1748604665462,-420.0,0.00023013,2]
[363160821,1748604665470,-420.98,0.00023013,2]
[363160822,1748604665479,-420.0,0.00023013,2]
[363160823,1748604665487,-420.0,0.00023013,2]
[363160824,1748604665496,-420.0,0.00023013,2]
[363160825,1748604665506,-420.0,0.00023013,2]
[363160826,1748604665515,-530.2795717,0.00023013,2]
[363160827,1748604665524,-441.38,0.00023013,2]
[363160828,1748604665533,-539.11102255,0.00023013,2]
[363160829,1748604665542,-420.0,0.00023013,2]
[363160830,1748604665551,-552.87,0.00023013,2]
[363160831,1748604665560,-420.0,0.00023013,2]
[363160832,1748604665569,-420.0,0.00023013,2]
[363160833,1748604665578,-420.0,0.00023013,2]
[363160834,1748604665587,-480.01,0.00023013,2]
[363160835,1748604665596,-420.0,0.00023013,2]
[363160836,1748604665606,-420.0,0.00023013,2]
[363160837,1748604665615,-420.0,0.00023013,2]
[363160838,1748604665624,-420.0,0.00023013,2]
[363160839,1748604665634,-420.0,0.00023013,2]
[363160840,1748604665642,-420.0,0.00023013,2]
[363160841,1748604665651,-420.0,0.00023013,2]
[363160842,1748604665660,-420.0,0.00023013,2]
[363160843,1748604665669,-420.0,0.00023013,2]
[363160844,1748604665678,-420.0,0.00023013,2]
[363160845,1748604665688,-420.0,0.00023013,2]
[363160846,1748604665698,-420.0,0.00023013,2]
[363160847,1748604665707,-702.31,0.00023013,2]
[363160848,1748604665717,-446.43,0.00023013,2]
[363160849,1748604665727,-420.0,0.00023013,2]
[363160850,1748604665737,-438.29,0.00023013,2]
[363160851,1748604665746,-426.9,0.00023013,2]
[363160852,1748604665755,-420.0,0.00023013,2]
[363160853,1748604665765,-420.0,0.00023013,2]
[363160854,1748604665774,-930.8,0.00023013,2]
[363160855,1748604665784,-420.0,0.00023013,2]
[363160856,1748604665793,-420.0,0.00023013,2]
[363160857,1748604665802,-420.0,0.00023013,2]
[363160858,1748604665812,-1732.59,0.00023013,2]
[363160859,1748604665821,-555.05,0.00023013,2]
[363160860,1748604665829,-420.0,0.00023013,2]
[363160861,1748604665838,-420.0,0.00023013,2]
[363160862,1748604665847,-1062.63,0.00023013,2]
[363160863,1748604665856,-580.84,0.00023013,2]
[363160864,1748604665865,-420.0,0.00023013,2]
[363160865,1748604665876,-642.32,0.00023013,2]
[363160866,1748604665885,-420.0,0.00023013,2]
[363160867,1748604665894,-718.47,0.00023013,2]
[363160868,1748604665902,-497.4,0.00023013,2]
[363160869,1748604665911,-984.73,0.00023013,2]
[363160870,1748604665922,-576.3,0.00023013,2]
[363160871,1748604665930,-420.0,0.00023013,2]
[363160872,1748604665939,-800.26,0.00023013,2]
[363160873,1748604665948,-718.15,0.00023013,2]
[363160874,1748604665958,-612.87,0.00023013,2]
[363160875,1748604665968,-770.54,0.00023013,2]
[363160876,1748604665977,-568.6,0.00023013,2]
[363160877,1748604665986,-728.67,0.00023013,2]
[363160878,1748604665996,-595.4,0.00023013,2]
[363160879,1748604666005,-420.0,0.00023013,2]
[363160880,1748604666015,-1523.16,0.00023013,2]
[363160881,1748604666024,-439.89,0.00023013,2]
[363160882,1748604666033,-1185.02,0.00023013,2]
[363160883,1748604666043,-473.85,0.00023013,2]
[363160884,1748604666052,-1155.34,0.00023013,2]
[363160885,1748604666062,-852.11,0.00023013,2]
[363160886,1748604666072,-536.09,0.00023013,2]
[363160887,1748604666081,-499.47,0.00023013,2]
[363160888,1748604666091,-1064.97,0.00023013,2]
[363160889,1748604666100,-553.07,0.00023013,2]
[363160890,1748604666110,-550.09,0.00023013,2]
[363160891,1748604666120,-420.0,0.00023013,2]
[363160892,1748604666130,-1249.34,0.00023013,2]
[363160893,1748604666139,-1087.42,0.00023013,2]
[363160894,1748604666149,-748.6,0.00023013,2]
[363160895,1748604666159,-420.0,0.00023013,2]
[363160896,1748604666168,-420.0,0.00023013,2]
[363160897,1748604666178,-420.0,0.00023013,2]
[363160898,1748604666187,-633.8,0.00023013,2]